Cogmind - Beta 13 @@@ ROGUE MODE // 2024.04.04 @ 00:09:01 Player: TechnicalFowl Result: Self-destructed Performance ------------- Evolutions (2) 1000 Regions Visited (4) 800 Robots Destroyed (50) 250 Value Destroyed (1451) 1451 Prototype IDs (2) 40 Alien Tech Used (0) 0 Bonus (0) 0 TOTAL SCORE: 3541 Bonus ------- None Cogmind --------- Core Integrity 75/550 Matter 165/300 Energy 85/100 System Corruption 0% Temperature Cool (6) Movement Treading (160) Location -8/Materials Parts ------- > --- POWER (1) -------- (None) > --- PROPULSION (3) --- Light Treads Light Treads > --- UTILITY (3) ------ Large Storage Unit > --- WEAPON (4) ------- Particle Gun > --- INVENTORY (15) --- Light Deuterium Engine Carbon-fiber Leg Cryofiber Web Cryofiber Web Heat Sink Improved Heat Sink Visual Processing Unit Improved Weapon Shielding Tractor Beam Peak State ------------ > --- POWER ------------ Light Nuclear Core > --- PROPULSION ------- Light Treads Light Treads Light Treads > --- UTILITY ---------- Improved Heat Sink Large Storage Unit Tractor Beam > --- WEAPON ----------- Particle Gun Light Assault Rifle Gauss Rifle Gauss Rifle > --- INVENTORY -------- Light Deuterium Engine Light Treads Carbon-fiber Leg Cryofiber Web Cryofiber Web Heat Sink Improved Heat Sink Visual Processing Unit Improved Weapon Shielding Tractor Beam Medium Laser Particle Gun Heavy Assault Rifle High-powered Shotgun Grenade Launcher [Rating: 25] Favorites ----------- Power Light Ion Engine Engine Light Ion Engine Power Core Light Nuclear Core Propulsion Aluminum Leg Treads Light Treads Leg Aluminum Leg Wheel Wheel Flight Unit Flight Unit Utility Large Storage Unit Device Improved Heat Sink Storage Large Storage Unit Protection Hardened Medium Armor Plating Weapon Light Assault Rifle Energy Gun Particle Gun Ballistic Gun Light Assault Rifle Launcher Grenade Launcher Build | -11 -10 -10 -9 -8 ------- Run | Yrd Mat Min Mat Mat Slots Evolved 4 | . . . 2 2 Power . | . . . . . Propulsion 1 | . . . 1 . Utility 1 | . . . . 1 Weapon 2 | . . . 1 1 Parts Attached 62 | 6 7 12 7 30 Power 7 | 1 1 2 . 3 Engine 6 | 1 1 2 . 2 Core 1 | . . . . 1 Reactor . | . . . . . Propulsion 22 | 2 2 5 2 11 Treads 7 | 2 . . . 5 Leg 10 | . . 3 2 5 Wheel 3 | . . 2 . 1 Hover . | . . . . . Flight 2 | . 2 . . . Utility 9 | 1 2 2 2 2 Device 6 | . 1 2 2 1 Storage 2 | 1 1 . . . Processor . | . . . . . Hackware . | . . . . . Protection 1 | . . . . 1 Artifact . | . . . . . Weapon 24 | 2 2 3 3 14 Energy Gun 7 | 1 . 1 2 3 Energy Cannon . | . . . . . Ballistic Gun 16 | 1 2 2 1 10 Ballistic Cannon . | . . . . . Launcher 1 | . . . . 1 Special Weapon . | . . . . . Impact Weapon . | . . . . . Slashing Weapon . | . . . . . Piercing Weapon . | . . . . . Special Melee Weapon . | . . . . . Unidentified Prototypes . | . . . . . Parts Lost 37 | . 2 7 . 28 Power 7 | . 1 2 . 4 Propulsion 10 | . 1 2 . 7 Utility 5 | . . 2 . 3 Weapon 15 | . . 1 . 14 Highest Loss Streak 18 | . 2 3 . 18 To Critical Strikes 1 | . . 1 . . Average Slot Usage (%) 90 | . 93 91 99 83 Engine 9 | . 14 10 11 4 Treads 6 | . 19 . . 8 Leg 12 | . . 9 33 13 Wheel 3 | . . 13 . . Flight 1 | . 4 2 . . Device 12 | . 11 12 11 13 Storage 11 | . 14 14 11 9 Energy Gun 8 | . 9 7 10 8 Ballistic Gun 21 | . 18 21 22 24 Naked Turns . | . . . . . Heaviest Build 39 | 14 31 28 31 39 Greatest Support 60 | 40 40 20 30 60 Greatest Overweight (x) 11 | . 9 3 1 11 Average Overweight (x) . | . . 1 . . Largest Inventory Capacity 15 | 8 15 15 15 15 Average Capacity 14 | 7 14 15 15 15 Most Carried 15 | 5 10 14 15 15 Average Carried 9 | 2 4 10 12 13 Final Capacity 15 | 8 15 15 15 15 Final Carried 14 | 2 10 13 14 9 Class Distribution -------------------- 44% | Scavenger-Gunner 31% | Mutant 23% | Scavenger-Mutant Dominant Class ---------------- Mutant | -10/Materials Scavenger-Mutant | -10/Mines Scavenger-Gunner | -9/Materials Scavenger-Gunner | -8/Materials Resources | -11 -10 -10 -9 -8 ----------- Run | Yrd Mat Min Mat Mat Matter Collected 1253 | 239 215 194 106 499 Remotely 433 | . . . . 433 Salvage Created 1961 | . 254 386 188 1133 Parts 127 | . 22 21 11 73 Haulers Intercepted 1 | . . . . 1 Recyclers Shooed 4 | . . 4 . . Parts Field Recycled . | . . . . . Retrieved Matter . | . . . . . Parts Self-Destructed . | . . . . . Prevented . | . . . . . Kills | -11 -10 -10 -9 -8 ------- Run | Yrd Mat Min Mat Mat Combat Hostiles Destroyed 35 | . 7 6 4 18 Guns 35 | . 7 6 4 18 Classes Destroyed 12 | . 4 2 2 4 Worker 1 | . . . 1 . Builder 4 | . 1 . . 3 Tunneler 2 | . . 2 . . Hauler 1 | . . . . 1 Recycler 4 | . . 1 . 3 Watcher 3 | . 1 . . 2 Swarmer 7 | . 3 . . 4 Grunt 21 | . 4 6 3 8 Duelist 1 | . . . . 1 Sentry 2 | . . . 1 1 Specialist 2 | . . . . 2 Hunter 2 | . . . . 2 Best Kill Streak 8 | . 5 2 2 8 Combat Bots Only 5 | . 5 2 2 5 Max Kills in Single Turn 2 | . 1 1 1 2 Gunslinging . | . . . . . Exploded . | . . . . . Melee . | . . . . . Uniques/NPCs Destroyed . | . . . . . Combat | -11 -10 -10 -9 -8 -------- Run | Yrd Mat Min Mat Mat Hostile Shots Fired 281 | . 62 32 17 170 Missed 76 | . 18 8 5 45 Damage Taken 3635 | . 565 393 139 2538 Core 673 | . 102 60 36 475 Absorbed by Shields . | . . . . . Core Remaining (%) 75 | 100 . 35 91 . Volleys Fired 168 | . 33 53 13 69 Largest 4 | . 2 2 3 4 Hottest 141 | . 70 85 108 141 Shots Fired 436 | . 65 104 39 228 Gun 430 | . 65 104 39 222 Cannon . | . . . . . Launcher 6 | . . . . 6 Special . | . . . . . Kinetic 312 | . 45 70 26 171 Thermal 118 | . 20 34 13 51 Explosive 6 | . . . . 6 Electromagnetic . | . . . . . Robot Hit Streak 11 | . 11 6 11 11 Robot Miss Streak 6 | . 4 4 1 6 Penetration Max 1 | . . . . 1 Secondary Targets 6 | . 2 1 . 3 Max Gunslinging Chain 1 | . 1 1 . 1 Shots Hit Robots 255 | . 37 60 29 129 Core Hits 109 | . 15 25 10 59 Critical Kills 3 | . . 2 . 1 Critical Parts Destroyed 1 | . . . . 1 Critical Strikes 8 | . . 4 2 2 Burn 4 | . . 2 2 . Destroy 4 | . . 2 . 2 Melee Attacks . | . . . . . Impact . | . . . . . Slashing . | . . . . . Piercing . | . . . . . Sneak Attacks . | . . . . . Combat Hostiles . | . . . . . Follow-up Attacks . | . . . . . Damage Inflicted 3388 | . 489 633 360 1906 Guns 3232 | . 489 630 360 1753 Cannons . | . . . . . Explosions 153 | . . . . 153 Melee . | . . . . . Ramming 3 | . . 3 . . Kinetic 2271 | . 379 374 205 1313 Thermal 961 | . 110 256 155 440 Explosive 153 | . . . . 153 Electromagnetic . | . . . . . Impact . | . . . . . Slashing . | . . . . . Piercing . | . . . . . Highest Corruption 4 | . 4 4 . . Average Corruption 3 | . 3 4 . . Corruption Purged . | . . . . . Corruption Blocked . | . . . . . Effects 18 | . 11 7 . . Message Errors 4 | . 4 . . . Matter Fused 4 | . 2 2 . . Heat Flow Errors 4 | . 1 3 . . Energy Discharges 3 | . 1 2 . . Parts Rejected 1 | . 1 . . . Data Loss (major) 1 | . 1 . . . Weapon Failures 1 | . 1 . . . Overload Shots . | . . . . . Overflow Damage . | . . . . . Projectiles . | . . . . . Explosions . | . . . . . Melee . | . . . . . Knockbacks . | . . . . . Impact . | . . . . . Kinetic . | . . . . . Secondary . | . . . . . Self-Inflicted Damage 1 | . . 1 . . Shots . | . . . . . Rammed 1 | . . 1 . . Targets Rammed 2 | . . 2 . . Kicked 1 | . . 1 . . Crushed . | . . . . . Highest Temperature 489 | . 219 320 39 489 Average Temperature 87 | . 93 60 11 112 Received Heat Transfer 1089 | . 309 213 63 504 Effects 2 | . . 2 . . Interference 2 | . . 2 . . Siege Activations . | . . . . . Robots Corrupted . | . . . . . Combat Hostiles . | . . . . . Parts Fried . | . . . . . Impact Corruptions . | . . . . . Robots Melted . | . . . . . Combat Hostiles . | . . . . . Parts Melted 1 | . . . . 1 Heat Transferred 2664 | . 333 740 518 1073 Parts Sabotaged . | . . . . . Parts Stolen . | . . . . . Parts Stripped . | . . . . . Power Chain Reactions . | . . . . . Alert | -11 -10 -10 -9 -8 ------- Run | Yrd Mat Min Mat Mat Peak Influence 249 | . 159 95 154 249 Initial 65 | . . 2 19 65 Average 81 | . 36 39 89 154 Maximum Alert Level 1 | . . . . 1 Low Security (%) 93 | 100 100 100 100 79 Level 1 6 | . . . . 20 Level 2 . | . . . . . Level 3 . | . . . . . Level 4 . | . . . . . Level 5 . | . . . . . High Security . | . . . . . Max Security . | . . . . . Squads Dispatched 4 | . . . 1 3 Investigation . | . . . . . Extermination . | . . . . . Reinforcement 4 | . . . 1 3 Assault . | . . . . . Garrison . | . . . . . Intercept . | . . . . . Searches Triggered . | . . . . . Construction Impeded . | . . . . . Haulers Reinforced . | . . . . . Active Scanning Responses . | . . . . . Cargo Convoy Interrupts . | . . . . . Stealth | -11 -10 -10 -9 -8 --------- Run | Yrd Mat Min Mat Mat Distress Signals 3 | . . . . 3 Communications Jammed . | . . . . . Distress Signals . | . . . . . Times Spotted 60 | . 14 15 5 26 Peak Tracking Total 6 | . 4 6 2 6 Tactical Retreats 6 | . 3 2 . 1 Traps | -11 -10 -10 -9 -8 ------- Run | Yrd Mat Min Mat Mat Traps Triggered 3 | . 3 . . . Indirectly . | . . . . . Trap Hack Attempts . | . . . . . Triggered . | . . . . . Disarmed . | . . . . . Reprogrammed . | . . . . . Reused . | . . . . . Traps Extracted . | . . . . . Installed . | . . . . . Triggered . | . . . . . Machines | -11 -10 -10 -9 -8 ---------- Run | Yrd Mat Min Mat Mat Machines Disabled 1 | . . . 1 . Max in Single Turn 1 | . . . 1 . Machines Repaired . | . . . . . Machines Dismantled . | . . . . . Machines Sabotaged . | . . . . . Overloaded Fab Kills . | . . . . . Hacking | -11 -10 -10 -9 -8 --------- Run | Yrd Mat Min Mat Mat Machines Accessed 3 | . 1 . 1 1 Terminals 3 | . 1 . 1 1 Fabricators . | . . . . . Repair Stations . | . . . . . Recycling Units . | . . . . . Scanalyzers . | . . . . . Garrison Access . | . . . . . Total Hacks 8 | . 2 . 5 1 Successful 2 | . 1 . 1 . Failed 6 | . 1 . 4 1 Catastrophic 1 | . . . . 1 Database Lockouts . | . . . . . Manual 4 | . 1 . 3 . Terminals 8 | . 2 . 5 1 Fabricators . | . . . . . Repair Stations . | . . . . . Recycling Units . | . . . . . Scanalyzers . | . . . . . Garrison Access . | . . . . . Terminal Hacks 2 | . 1 . 1 . Prototype ID Bank 1 | . . . 1 . Locate Traps 1 | . 1 . . . Fabricator Hacks . | . . . . . Repair Station Hacks . | . . . . . Recycling Unit Hacks . | . . . . . Scanalyzer . | . . . . . Garrison Access Hacks . | . . . . . Unauthorized Hacks . | . . . . . Terminals . | . . . . . Fabricators . | . . . . . Repair Stations . | . . . . . Recycling Units . | . . . . . Scanalyzers . | . . . . . Garrison Access . | . . . . . Data Cores Recovered . | . . . . . Used . | . . . . . Hacking Detections 2 | . . . 1 1 Full Trace Events . | . . . . . Feedback Events . | . . . . . Feedback Blocked . | . . . . . Robot Schematics Acquired . | . . . . . Robots Built . | . . . . . Authchips . | . . . . . Time . | . . . . . Total Robot Build Rating . | . . . . . Part Schematics Acquired . | . . . . . Parts Built . | . . . . . Authchips . | . . . . . Time . | . . . . . Total Part Build Rating . | . . . . . Parts Repaired . | . . . . . Time . | . . . . . Parts Recycled . | . . . . . Recycled Matter . | . . . . . Retrieved Matter . | . . . . . Retrieved Components . | . . . . . Parts Scanalyzed . | . . . . . Part Schematics Acquired . | . . . . . Parts Damaged . | . . . . . Bothacking | -11 -10 -10 -9 -8 ------------ Run | Yrd Mat Min Mat Mat Used RIF Installer . | . . . . . Robots Hacked . | . . . . . Non-combat . | . . . . . Combat . | . . . . . Robot Hacks Applied . | . . . . . Relay Couplers Released . | . . . . . Fabnet Peak Effective % . | . . . . . Robots Rewired . | . . . . . Allies Hacked . | . . . . . Hacks Repelled . | . . . . . Allies | -11 -10 -10 -9 -8 -------- Run | Yrd Mat Min Mat Mat Total Allies . | . . . . . Largest Group . | . . . . . Highest-Rated Group . | . . . . . Highest-Rated Ally . | . . . . . Total Orders . | . . . . . Ally Attacks . | . . . . . Total Damage . | . . . . . Kills . | . . . . . Allies Corrupted . | . . . . . Allies Melted . | . . . . . Intel | -11 -10 -10 -9 -8 ------- Run | Yrd Mat Min Mat Mat Robot Analysis Total . | . . . . . Derelict Logs Recovered 1 | . . 1 . . Drone Launches . | . . . . . Drone Recoveries . | . . . . . Exploration | -11 -10 -10 -9 -8 ------------- Run | Yrd Mat Min Mat Mat Turns Passed 2142 | 71 466 595 332 678 Spaces Moved 966 | 53 185 337 165 226 Core 34 | 24 7 . . 3 Treads 288 | 29 155 . . 104 Legs 323 | . . 44 165 114 Wheels 290 | . . 285 . 5 Hover . | . . . . . Flight 31 | . 23 8 . . Fastest Speed 50 | 50 160 95 120 110 Average Speed 154 | 110 187 121 161 180 Slowest Speed 600 | 160 500 277 190 600 Overloaded Moves . | . . . . . Propulsion Burnouts . | . . . . . Robots Hopped . | . . . . . Cave-ins Triggered . | . . . . . Exploration Rate (%) 24 | 5 28 51 16 24 Regions Visited 4 Branch Regions 1 Pre-discovered Areas . | . . . . . Known Exits Taken . | . . . . . Unknown Exits Taken 4 | 1 1 1 1 . Scrap Searched 2 | . . 2 . . Spaces Dug . | . . . . . Terrain Destroyed 30 | . . . . 30 Melee . | . . . . . Projectile 1 | . . . . 1 AOE 29 | . . . . 29 Terrain Rammed . | . . . . . Walls Destroyed . | . . . . . Machines Disabled . | . . . . . Actions | -11 -10 -10 -9 -8 --------- Run | Yrd Mat Min Mat Mat Total 1303 | 66 239 429 205 364 Wait 24 | . 1 11 12 . Move 962 | 52 184 336 164 226 Hop . | . . . . . Pick Up 69 | 8 13 12 6 30 Fast Attach . | . . . . . Attach 50 | 6 5 8 4 27 Detach 1 | . . . 1 . Swap 12 | . 2 4 3 3 Drop 15 | . 1 3 2 9 Fire 168 | . 33 53 13 69 Melee . | . . . . . Ram 1 | . . 1 . . Kick 1 | . . 1 . . Crush . | . . . . . Escape Stasis . | . . . . . Rewire . | . . . . . Trap . | . . . . . Miscellaneous . | . . . . . Route ------- -11/Scrapyard -10/Materials (discovered 2 exits: [*Min x2]) -10/Mines -9/Materials -8/Materials (discovered 1 exit: [*Fac]) History --------- Turn | Location | Event 12 | -11/Scrapyard | Discovered new exit (range 15) 72 | -11/Scrapyard | Entered Materials 309 | -10/Materials | Build established: Mutant 324 | -10/Materials | Discovered new exit (range 5) 327 | -10/Materials | Discovered new exit (range 14) 538 | -10/Materials | Entered Mines 585 | -10/Mines | Lost 3 parts (1p1u1w) 882 | -10/Mines | Build established: Scavenger-Mutant 955 | -10/Mines | Learned Materials emergency access door positions 969 | -10/Mines | Assembled infested the area 974 | -10/Mines | Assisted by a Guerilla fighting off Assembled 1053 | -10/Mines | Discovered new exit (range 9) 1072 | -10/Mines | Core integrity fell below 50% 1100 | -10/Mines | Lost 3 parts (2n1u) 1133 | -10/Mines | Entered Materials 1133 | -9/Materials | Evolved 2 slots: Propulsion x1, Weapon x1 1445 | -9/Materials | Build established: Scavenger-Gunner 1458 | -9/Materials | Discovered new exit (range 3) 1465 | -9/Materials | Entered another Materials area 1465 | -8/Materials | Evolved 2 slots: Utility x1, Weapon x1 1609 | -8/Materials | Lost 3 parts (1p1n1w) 1756 | -8/Materials | Lost 3 parts (2n1w) 2054 | -8/Materials | Discovered new exit (range 12) 2089 | -8/Materials | Core integrity fell below 50% 2143 | -8/Materials | Core integrity fell below 20% 2143 | -8/Materials | Self-destructed Last Messages --------------- Lgt. Ion Engine destroyed. K-01 Serf collects debris. Acquired Lgt. Treads. K-01 Serf collects debris. W-25 Informer sends out distress signal. Grenade Launcher destroyed. Acquired 20 matter. K-01 Serf collects debris. Acquired Particle Gun. U-05 Engineer lays Concrete. The unstable cave ceiling collapses. U-05 Engineer lays Concrete. K-01 Serf collects debris. U-05 Engineer lays Concrete. Slug penetrates Wall. U-05 Engineer lays Concrete. K-01 Serf collects debris. U-05 Engineer lays Concrete. Slug penetrates Wall. U-05 Engineer lays Concrete. Map ----- +----------------------------------------------------+ | ???????????# """ """ / !!#???????? | | ???????????# # !!#???????? | | ???????????# ] # ####### !!#???????? | | ???????????# ## ##?????# !!#???????? | | ???????????# ## #??????# !!#???????? | | ???????????# ## #??#???# #####???????? | | ???????????############ #?? ???# #???????????? | | ??????????????????????# #? "???# #???????????? | | ?????????????????????? #? ????# #???????????? | | ?????????????????????## # ????+ #???????????? | | ??????????????????????# #!?????# ! #???????????? | | ?????????????#??####### # ?????# #???????????? | | ????????????? [ ##?????# =#???????????? | | ??????????????# #??????#[!=###########?? | | ??????????????# #??????#=[*# ! #?? | | ??????????????# ""T"" #??????# *%# ! ! #?? | | ??????????????# """" ##?????#=[ + ! = #?? | | ??????????????# % k ;??????#%**# !!= #?? | | ??????????????#] h % #??????#=%=###########?? | | ??????????????######### w #?????##=* ##??????????? | | ??????????????????????#% ###+### #??????????? | | ?????????????????????## * #??????????? | | ?????????????????????## *= #??????????? | | ?????????????????????##%==%! #??????????? | | ?????????????????????# * ####### #??????????? | | ?????????????????????# !=@ #????#######??????????? | | ?????????????????????# %% #?????????????????????? | | ?????????????????????# ! = #?????????????????????? | | ????????????????????# ! ?????????????????????? | | ???????????????????# ????????????????????? | | ???????????????????## H # ???????????????????? | | ???????????????????? ???????????????????? | | ??????????????????? ??????????????????? | | ?????????????????? u ?????????????????? | | ????????????????? #####????????????????? | | ???????????????? "T" ## ###????????????????????? | | ???????????????# #??#???????????????????????? | | ???????????????????###???????????????????????????? | | ?????????????????????????????????????????????????? | | ?????????????????????????????????????????????????? | | ?????????????????????????????????????????????????? | | ?????????????????????????????????????????????????? | | ?????????????????????????????????????????????????? | | | | | | | | | | | | | | | +----------------------------------------------------+ Best States ------------- Heat Dissipation 45 Energy Generation 14 Energy Capacity 250 Matter Stores 300 Matter Capacity 300 Sight Range 16 Terrain Scan Range 14 Terrain Scan Density 10 ECM Strength 1 Armor Coverage 225 Evasion (%) 55 Recoil Reduction 3 Item Schematics ----------------- None Robot Schematics ------------------ None Fabricated ------------ Nothing Alien Tech Used ----------------- None Achievements -------------- I Survived The Infestation Challenges ------------ None Game ------ Seed ArmageddonTeslaProtection Manual? 0 Play Time 00:28:20 Cumulative 2.6 hours Start 2024.04.03 @ 23:41:44 End 2024.04.04 @ 00:09:01 Sessions 1 Manual Loads 0 Difficulty Rogue Special Mode None Game No. 4 Rogue 2 Adventurer 2 Explorer 0 Win Type - Total 0 Types 0/0/0/0/0/0/0/0/0 Lore% 2 Gallery% 9 Achievement% 12 Wizard Run 0 Options --------- Layout 1 ASCII 0 Keyboard 0 Movement Arrows Keybinds 0 Fullscreen 1 Font 24/Smallcaps Map View 50x35 Zoom Use 0% Tactical HUD 0 Map Filters NONE Filters NONE Steam 1 RUN: d967da0b-2b4a-4ade-aaf3-fe56ccaf013f